[Event "*** Titled Tuesday Blitz"]
[Site "Chess.com"]
[Date "2020.03.03"]
[Round "7"]
[White "Eliclax"]
[Black "mortngabriel"]
[Result "0-1"]
[WhiteElo "1914"]
[BlackElo "2400"]
[TimeControl "180+1"]
[EndTime "10:12:22 PST"]
[Termination "mortngabriel won by checkmate"]

1. d4 {[%clk 0:03:00.9]} 1... Nf6 {[%clk 0:02:59.7]} 2. c4 {[%clk 0:03:01.5]}
2... c5 {[%clk 0:02:59.8]} 3. d5 {[%clk 0:03:01]} 3... b5 {[%clk 0:03:00.4]} 4.
b3 {[%clk 0:03:00.4]} 4... g6 {[%clk 0:02:57.2]} 5. Bb2 {[%clk 0:03:00.2]} 5...
bxc4 {[%clk 0:02:55.7]} 6. bxc4 {[%clk 0:02:59.6]} 6... Bg7 {[%clk 0:02:55.9]}
7. Nd2 {[%clk 0:02:58.5]} 7... O-O {[%clk 0:02:55.3]} 8. e4 {[%clk 0:02:58.7]}
8... d6 {[%clk 0:02:55.6]} 9. Ngf3 {[%clk 0:02:58.8]} 9... Bg4 {[%clk
0:02:53.5]} 10. Bd3 {[%clk 0:02:58.4]} 10... Nbd7 {[%clk 0:02:46.1]} 11. h3
{[%clk 0:02:58.6]} 11... Bxf3 {[%clk 0:02:45.1]} 12. Nxf3 {[%clk 0:02:53.1]}
12... Rb8 {[%clk 0:02:40.5]} 13. Qc2 {[%clk 0:02:48.8]} 13... Rxb2 {[%clk
0:02:33]} 14. Qxb2 {[%clk 0:02:46.6]} 14... Nxd5 {[%clk 0:02:28.1]} 15. Qc1
{[%clk 0:02:34.6]} 15... Nb4 {[%clk 0:02:08.5]} 16. Ke2 {[%clk 0:02:12.9]} 16...
Bxa1 {[%clk 0:02:05.3]} 17. Qxa1 {[%clk 0:02:12.4]} 17... Qa5 {[%clk 0:02:01.2]}
18. a3 {[%clk 0:02:08]} 18... Nxd3 {[%clk 0:02:00.9]} 19. Kxd3 {[%clk
0:02:07.6]} 19... Rb8 {[%clk 0:01:59.8]} 20. Nd2 {[%clk 0:02:07.5]} 20... Ne5+
{[%clk 0:01:55.2]} 21. Ke3 {[%clk 0:02:05.7]} 21... Qa4 {[%clk 0:01:20.2]} 22.
Rc1 {[%clk 0:01:55.3]} 22... Nc6 {[%clk 0:01:19.7]} 23. Qc3 {[%clk 0:01:40.6]}
23... Nd4 {[%clk 0:01:16.9]} 24. Rb1 {[%clk 0:01:32]} 24... Rxb1 {[%clk
0:01:10]} 25. Nxb1 {[%clk 0:01:31.9]} 25... Qd1 {[%clk 0:01:10.7]} 26. Qb2
{[%clk 0:01:05.9]} 26... e5 {[%clk 0:01:02.2]} 27. Nc3 {[%clk 0:01:00.9]} 27...
Qe1+ {[%clk 0:00:56.6]} 28. Ne2 {[%clk 0:00:53.8]} 28... f5 {[%clk 0:00:46.2]}
29. Qb8+ {[%clk 0:00:52.4]} 29... Kg7 {[%clk 0:00:43.8]} 30. Qc7+ {[%clk
0:00:52.5]} 30... Kh6 {[%clk 0:00:43.6]} 31. Qxd6 {[%clk 0:00:21.2]} 31... Qxe2#
{[%clk 0:00:43]} 0-1

[Event "*** Titled Tuesday Blitz"]
[Site "Chess.com"]
[Date "2020.03.03"]
[Round "7"]
[White "Ariadna_Atreides"]
[Black "SubrotaBiswas"]
[Result "0-1"]
[WhiteElo "2117"]
[BlackElo "2468"]
[TimeControl "180+1"]
[EndTime "10:12:24 PST"]
[Termination "SubrotaBiswas won by resignation"]

1. d4 {[%clk 0:02:42.9]} 1... Nf6 {[%clk 0:02:57.3]} 2. Nf3 {[%clk 0:02:42.6]}
2... e6 {[%clk 0:02:53.1]} 3. e3 {[%clk 0:02:40.4]} 3... b6 {[%clk 0:02:51.1]}
4. Bd3 {[%clk 0:02:36.9]} 4... d5 {[%clk 0:02:49.2]} 5. O-O {[%clk 0:02:35.8]}
5... Be7 {[%clk 0:02:47.4]} 6. Nbd2 {[%clk 0:02:29.3]} 6... Ba6 {[%clk
0:02:45.8]} 7. Bxa6 {[%clk 0:02:25]} 7... Nxa6 {[%clk 0:02:45.8]} 8. Qe2 {[%clk
0:02:25.4]} 8... Qc8 {[%clk 0:02:43.8]} 9. c3 {[%clk 0:02:21.3]} 9... O-O {[%clk
0:02:41.7]} 10. Ne5 {[%clk 0:02:20.8]} 10... c5 {[%clk 0:02:40.9]} 11. f4 {[%clk
0:02:13.7]} 11... Ne4 {[%clk 0:02:35.5]} 12. Nxe4 {[%clk 0:02:09.9]} 12... dxe4
{[%clk 0:02:36]} 13. Ng4 {[%clk 0:01:57.3]} 13... Nc7 {[%clk 0:02:31.8]} 14. b3
{[%clk 0:01:51.8]} 14... Nd5 {[%clk 0:02:29.9]} 15. Bb2 {[%clk 0:01:51.2]} 15...
cxd4 {[%clk 0:02:18.8]} 16. exd4 {[%clk 0:01:44.4]} 16... Nxc3 {[%clk
0:02:16.8]} 17. Qc2 {[%clk 0:01:33.7]} 17... Nd5 {[%clk 0:02:11.9]} 18. Qe2
{[%clk 0:01:29.9]} 18... f5 {[%clk 0:02:04.1]} 19. Ne5 {[%clk 0:01:28.9]} 19...
Qb7 {[%clk 0:01:59.1]} 20. a4 {[%clk 0:01:11.9]} 20... a5 {[%clk 0:01:55]} 21.
g3 {[%clk 0:01:10.3]} 21... Rac8 {[%clk 0:01:55]} 22. Ba3 {[%clk 0:01:08.9]}
22... Bxa3 {[%clk 0:01:52.7]} 23. Rxa3 {[%clk 0:01:08.6]} 23... Rc3 {[%clk
0:01:51.5]} 24. Nc4 {[%clk 0:00:56.8]} 24... Rc8 {[%clk 0:01:48.5]} 25. Rb1
{[%clk 0:00:50.8]} 25... Qe7 {[%clk 0:01:40.6]} 26. Ra2 {[%clk 0:00:40.5]} 26...
Rd3 {[%clk 0:01:27.8]} 27. Rab2 {[%clk 0:00:39.9]} 27... Nc3 {[%clk 0:01:27.9]}
28. Qe1 {[%clk 0:00:39.6]} 28... Nxb1 {[%clk 0:01:28]} 29. Qxb1 {[%clk
0:00:38.9]} 29... Qb4 {[%clk 0:01:26.2]} 30. Rc2 {[%clk 0:00:24.5]} 30... Rxb3
{[%clk 0:01:23.3]} 31. Qc1 {[%clk 0:00:23.2]} 31... Rb1 {[%clk 0:01:19.2]} 0-1

[Event "*** Titled Tuesday Blitz"]
[Site "Chess.com"]
[Date "2020.03.03"]
[Round "7"]
[White "ethylalcohol"]
[Black "Komissarov_alex"]
[Result "1-0"]
[WhiteElo "2140"]
[BlackElo "1761"]
[TimeControl "180+1"]
[EndTime "10:12:38 PST"]
[Termination "ethylalcohol won on time"]

1. d4 {[%clk 0:03:00.7]} 1... Nf6 {[%clk 0:02:54.6]} 2. Nf3 {[%clk 0:03:01]}
2... d5 {[%clk 0:02:53.4]} 3. Bf4 {[%clk 0:03:01.1]} 3... Bf5 {[%clk 0:02:51.1]}
4. e3 {[%clk 0:02:58.2]} 4... e6 {[%clk 0:02:50.4]} 5. Bd3 {[%clk 0:02:55]} 5...
Bxd3 {[%clk 0:02:47.3]} 6. Qxd3 {[%clk 0:02:55.2]} 6... c5 {[%clk 0:02:47.8]} 7.
dxc5 {[%clk 0:02:27.3]} 7... Bxc5 {[%clk 0:02:43.1]} 8. Qb5+ {[%clk 0:02:10.6]}
8... Nbd7 {[%clk 0:02:30.9]} 9. Qxb7 {[%clk 0:02:10.1]} 9... O-O {[%clk
0:02:22.5]} 10. O-O {[%clk 0:02:04.4]} 10... Nh5 {[%clk 0:02:15.4]} 11. Bc7
{[%clk 0:01:49.9]} 11... Qe7 {[%clk 0:02:10.8]} 12. Qb5 {[%clk 0:01:27.9]} 12...
Ndf6 {[%clk 0:01:52.8]} 13. Be5 {[%clk 0:01:20.9]} 13... Ng4 {[%clk 0:01:51.3]}
14. Bc3 {[%clk 0:00:59.2]} 14... Rfb8 {[%clk 0:01:37.6]} 15. Qe2 {[%clk
0:00:58.9]} 15... Nhf6 {[%clk 0:01:13]} 16. h3 {[%clk 0:00:56.9]} 16... Nh6
{[%clk 0:01:11.6]} 17. Nbd2 {[%clk 0:00:56.2]} 17... Nf5 {[%clk 0:01:10.6]} 18.
Nd4 {[%clk 0:00:52.4]} 18... Ne4 {[%clk 0:00:56.9]} 19. Nxe4 {[%clk 0:00:44.9]}
19... dxe4 {[%clk 0:00:47.3]} 20. Nc6 {[%clk 0:00:44.2]} 20... Qg5 {[%clk
0:00:33.9]} 21. Nxb8 {[%clk 0:00:43.4]} 21... Rxb8 {[%clk 0:00:11]} 22. Qg4
{[%clk 0:00:43.1]} 22... Qf6 {[%clk 0:00:08.9]} 23. Bxf6 {[%clk 0:00:41.4]} 1-0

[Event "*** Titled Tuesday Blitz"]
[Site "Chess.com"]
[Date "2020.03.03"]
[Round "7"]
[White "DonPreuss"]
[Black "secretsuperstar7"]
[Result "1-0"]
[WhiteElo "2178"]
[BlackElo "2195"]
[TimeControl "180+1"]
[EndTime "10:12:38 PST"]
[Termination "DonPreuss won by resignation"]

1. Nc3 {[%clk 0:02:57.7]} 1... e5 {[%clk 0:02:53.4]} 2. e4 {[%clk 0:02:57.2]}
2... Nf6 {[%clk 0:02:48.5]} 3. f4 {[%clk 0:02:57.2]} 3... d6 {[%clk 0:02:45.6]}
4. Nf3 {[%clk 0:02:55]} 4... Nc6 {[%clk 0:02:45]} 5. d4 {[%clk 0:02:51.3]} 5...
exd4 {[%clk 0:02:43.1]} 6. Nxd4 {[%clk 0:02:51.4]} 6... g6 {[%clk 0:02:38.9]} 7.
Nxc6 {[%clk 0:02:47.6]} 7... bxc6 {[%clk 0:02:38.2]} 8. Bd3 {[%clk 0:02:47.9]}
8... Bg7 {[%clk 0:02:37.3]} 9. O-O {[%clk 0:02:47.6]} 9... O-O {[%clk
0:02:35.7]} 10. Qe1 {[%clk 0:02:48]} 10... Re8 {[%clk 0:02:35]} 11. Qh4 {[%clk
0:02:47.8]} 11... c5 {[%clk 0:02:29.6]} 12. f5 {[%clk 0:02:44.3]} 12... Nd7
{[%clk 0:02:08.9]} 13. Bg5 {[%clk 0:02:41.3]} 13... f6 {[%clk 0:01:55.7]} 14.
fxg6 {[%clk 0:02:39.9]} 14... hxg6 {[%clk 0:01:54.8]} 15. Bh6 {[%clk 0:02:20.3]}
15... c6 {[%clk 0:01:48.1]} 16. Bc4+ {[%clk 0:02:04.3]} 16... Kf8 {[%clk
0:01:32.8]} 17. Rf3 {[%clk 0:01:58.3]} 17... f5 {[%clk 0:01:13.8]} 18. Bg5
{[%clk 0:01:55.2]} 18... Nf6 {[%clk 0:01:12]} 19. exf5 {[%clk 0:01:38.6]} 19...
gxf5 {[%clk 0:01:09.4]} 20. Raf1 {[%clk 0:01:04.5]} 20... Re5 {[%clk 0:00:59.4]}
21. g4 {[%clk 0:00:39.4]} 21... d5 {[%clk 0:00:50.9]} 22. Bd3 {[%clk 0:00:38.4]}
22... c4 {[%clk 0:00:29.9]} 23. Bxf5 {[%clk 0:00:38.3]} 23... Qb6+ {[%clk
0:00:27.9]} 24. Kh1 {[%clk 0:00:33.9]} 24... Bxf5 {[%clk 0:00:19.8]} 25. Rxf5
{[%clk 0:00:33.7]} 25... Rxf5 {[%clk 0:00:18.2]} 26. Rxf5 {[%clk 0:00:33.6]}
26... Re8 {[%clk 0:00:16.8]} 27. Bxf6 {[%clk 0:00:31.9]} 27... Re1+ {[%clk
0:00:14.3]} 28. Qxe1 {[%clk 0:00:31.8]} 1-0

[Event "*** Titled Tuesday Blitz"]
[Site "Chess.com"]
[Date "2020.03.03"]
[Round "7"]
[White "SanchezKelvin"]
[Black "Zavgorodniy_Serg"]
[Result "1-0"]
[WhiteElo "2348"]
[BlackElo "2522"]
[TimeControl "180+1"]
[EndTime "10:12:39 PST"]
[Termination "SanchezKelvin won by resignation"]

1. d4 {[%clk 0:03:00.9]} 1... Nf6 {[%clk 0:02:59.3]} 2. c4 {[%clk 0:03:00.9]}
2... e6 {[%clk 0:02:59]} 3. Nf3 {[%clk 0:03:00.9]} 3... Bb4+ {[%clk 0:02:59.4]}
4. Nbd2 {[%clk 0:03:00.4]} 4... d5 {[%clk 0:02:55.1]} 5. g3 {[%clk 0:02:59]}
5... O-O {[%clk 0:02:49.2]} 6. Bg2 {[%clk 0:02:54.2]} 6... dxc4 {[%clk
0:02:48.6]} 7. O-O {[%clk 0:02:53]} 7... b5 {[%clk 0:02:47.8]} 8. Ne5 {[%clk
0:02:46.9]} 8... Nd5 {[%clk 0:02:46.9]} 9. a4 {[%clk 0:02:38]} 9... c6 {[%clk
0:02:44.9]} 10. Ne4 {[%clk 0:02:36.8]} 10... f6 {[%clk 0:02:35]} 11. Nf3 {[%clk
0:02:35.9]} 11... Nd7 {[%clk 0:02:29.1]} 12. Qc2 {[%clk 0:02:29.9]} 12... Be7
{[%clk 0:02:24.6]} 13. b3 {[%clk 0:02:26.9]} 13... Nb4 {[%clk 0:02:15.2]} 14.
Qb1 {[%clk 0:02:22.4]} 14... cxb3 {[%clk 0:02:06]} 15. Qxb3 {[%clk 0:02:14.1]}
15... Nb6 {[%clk 0:02:06.2]} 16. axb5 {[%clk 0:02:07.6]} 16... cxb5 {[%clk
0:02:04.6]} 17. Nc5 {[%clk 0:02:07.7]} 17... a5 {[%clk 0:01:46.7]} 18. Nxe6
{[%clk 0:02:07.3]} 18... Bxe6 {[%clk 0:01:47.1]} 19. Qxe6+ {[%clk 0:02:06.5]}
19... Kh8 {[%clk 0:01:47.3]} 20. Bd2 {[%clk 0:01:55.1]} 20... Re8 {[%clk
0:01:35.2]} 21. Qf5 {[%clk 0:01:46.9]} 21... Qd7 {[%clk 0:01:10]} 22. Qb1 {[%clk
0:01:24.7]} 22... Nc4 {[%clk 0:01:07.4]} 23. Bc3 {[%clk 0:01:14.9]} 23... Nd5
{[%clk 0:01:04.5]} 24. Bxa5 {[%clk 0:01:10.6]} 24... Rxa5 {[%clk 0:01:01.8]} 25.
Rxa5 {[%clk 0:01:07.8]} 25... Nxa5 {[%clk 0:01:02.7]} 26. e4 {[%clk 0:01:06.3]}
26... Nc3 {[%clk 0:01:02.2]} 27. Qa1 {[%clk 0:01:04.9]} 27... b4 {[%clk
0:01:03.1]} 28. Qxa5 {[%clk 0:01:03.4]} 28... Rb8 {[%clk 0:01:02.6]} 29. e5
{[%clk 0:01:01.9]} 29... Ne2+ {[%clk 0:00:54.8]} 30. Kh1 {[%clk 0:00:42.6]}
30... b3 {[%clk 0:00:55.7]} 31. Qd2 {[%clk 0:00:40.7]} 31... b2 {[%clk
0:00:55.1]} 32. Rb1 {[%clk 0:00:40.1]} 32... Qa7 {[%clk 0:00:50.6]} 33. Qxe2
{[%clk 0:00:37.9]} 33... Qa1 {[%clk 0:00:50.6]} 34. Nd2 {[%clk 0:00:37.7]} 34...
Bb4 {[%clk 0:00:49.5]} 35. Be4 {[%clk 0:00:37.1]} 1-0

[Event "*** Titled Tuesday Blitz"]
[Site "Chess.com"]
[Date "2020.03.03"]
[Round "7"]
[White "DACF2905"]
[Black "MathiasWomacka"]
[Result "0-1"]
[WhiteElo "2206"]
[BlackElo "2381"]
[TimeControl "180+1"]
[EndTime "10:12:49 PST"]
[Termination "MathiasWomacka won by resignation"]

1. c4 {[%clk 0:00:57.8]} 1... c5 {[%clk 0:02:58.4]} 2. Nc3 {[%clk 0:00:54.9]}
2... Nf6 {[%clk 0:02:58.2]} 3. Nf3 {[%clk 0:00:54.9]} 3... e6 {[%clk 0:02:57.8]}
4. g3 {[%clk 0:00:55.8]} 4... b6 {[%clk 0:02:58.1]} 5. Bg2 {[%clk 0:00:56.7]}
5... Bb7 {[%clk 0:02:58.3]} 6. O-O {[%clk 0:00:57.6]} 6... Be7 {[%clk
0:02:58.5]} 7. d4 {[%clk 0:00:58.3]} 7... cxd4 {[%clk 0:02:58.9]} 8. Nxd4 {[%clk
0:00:58.4]} 8... Bxg2 {[%clk 0:02:57.3]} 9. Kxg2 {[%clk 0:00:59.3]} 9... Qc8
{[%clk 0:02:55.4]} 10. b3 {[%clk 0:00:57.9]} 10... Qb7+ {[%clk 0:02:55.2]} 11.
Nf3 {[%clk 0:00:57.4]} 11... O-O {[%clk 0:02:48.6]} 12. Bf4 {[%clk 0:00:56.9]}
12... a6 {[%clk 0:02:47.2]} 13. Bd6 {[%clk 0:00:55.8]} 13... Bxd6 {[%clk
0:02:39.9]} 14. Qxd6 {[%clk 0:00:55.4]} 14... b5 {[%clk 0:02:38.2]} 15. c5
{[%clk 0:00:50.8]} 15... Nc6 {[%clk 0:01:54.5]} 16. Rad1 {[%clk 0:00:47.6]}
16... Rfd8 {[%clk 0:01:48.1]} 17. a3 {[%clk 0:00:40.9]} 17... a5 {[%clk
0:01:46.3]} 18. h3 {[%clk 0:00:35.8]} 18... b4 {[%clk 0:01:32.5]} 19. Na4 {[%clk
0:00:34.3]} 19... bxa3 {[%clk 0:01:30.2]} 20. Nb6 {[%clk 0:00:34.3]} 20... Rab8
{[%clk 0:01:27.6]} 21. g4 {[%clk 0:00:34.1]} 21... Ne4 {[%clk 0:01:25.1]} 22.
Qf4 {[%clk 0:00:25.5]} 22... Nxc5 {[%clk 0:01:24.2]} 23. Nc4 {[%clk 0:00:25.3]}
23... d5 {[%clk 0:01:18]} 24. Nd6 {[%clk 0:00:22.9]} 24... Qc7 {[%clk
0:01:15.5]} 25. Rc1 {[%clk 0:00:19.6]} 25... Nxb3 {[%clk 0:01:09.8]} 26. Rxc6
{[%clk 0:00:17.9]} 26... Qxc6 {[%clk 0:01:04.8]} 27. Qxf7+ {[%clk 0:00:17.5]}
27... Kh8 {[%clk 0:01:05.3]} 28. Ng5 {[%clk 0:00:15.5]} 28... Rxd6 {[%clk
0:00:57.1]} 29. Qh5 {[%clk 0:00:15.2]} 29... h6 {[%clk 0:00:57.1]} 30. Nf7+
{[%clk 0:00:14.2]} 30... Kh7 {[%clk 0:00:50]} 31. Ne5 {[%clk 0:00:12.3]} 31...
Qc7 {[%clk 0:00:49]} 32. Qg6+ {[%clk 0:00:12]} 32... Kg8 {[%clk 0:00:48.9]} 33.
f4 {[%clk 0:00:11.2]} 33... Nd4 {[%clk 0:00:42.9]} 34. f5 {[%clk 0:00:10.6]}
34... exf5 {[%clk 0:00:43.1]} 35. gxf5 {[%clk 0:00:10.9]} 35... Rxg6+ {[%clk
0:00:42.7]} 36. Nxg6 {[%clk 0:00:10.8]} 36... Nxe2 {[%clk 0:00:41.1]} 0-1

[Event "*** Titled Tuesday Blitz"]
[Site "Chess.com"]
[Date "2020.03.03"]
[Round "7"]
[White "Kotofeyca"]
[Black "ahkashefi2800"]
[Result "0-1"]
[WhiteElo "2336"]
[BlackElo "2116"]
[TimeControl "180+1"]
[EndTime "10:12:50 PST"]
[Termination "ahkashefi2800 won by checkmate"]

1. d4 {[%clk 0:03:00.9]} 1... d5 {[%clk 0:02:51.3]} 2. c4 {[%clk 0:03:00.9]}
2... dxc4 {[%clk 0:02:52.2]} 3. Nf3 {[%clk 0:02:58.9]} 3... Nf6 {[%clk
0:02:52.7]} 4. e3 {[%clk 0:02:57.5]} 4... e6 {[%clk 0:02:51.4]} 5. Bxc4 {[%clk
0:02:57.4]} 5... c5 {[%clk 0:02:52]} 6. O-O {[%clk 0:02:57.2]} 6... a6 {[%clk
0:02:52.3]} 7. Qe2 {[%clk 0:02:54.4]} 7... b5 {[%clk 0:02:48.2]} 8. Bb3 {[%clk
0:02:54.5]} 8... Bb7 {[%clk 0:02:46.6]} 9. Rd1 {[%clk 0:02:54.4]} 9... Nbd7
{[%clk 0:02:40.4]} 10. Nc3 {[%clk 0:02:52.9]} 10... Qb8 {[%clk 0:02:29]} 11. d5
{[%clk 0:02:49.3]} 11... exd5 {[%clk 0:02:23.8]} 12. Nxd5 {[%clk 0:02:48.9]}
12... c4 {[%clk 0:02:18.2]} 13. Nxf6+ {[%clk 0:02:41.4]} 13... Nxf6 {[%clk
0:02:17.8]} 14. Bc2 {[%clk 0:02:41.8]} 14... Bc5 {[%clk 0:02:16.4]} 15. e4
{[%clk 0:02:33]} 15... O-O {[%clk 0:01:59.1]} 16. Bg5 {[%clk 0:02:32.9]} 16...
Ng4 {[%clk 0:01:48.3]} 17. Bh4 {[%clk 0:02:32.7]} 17... Ne5 {[%clk 0:01:38.6]}
18. Bg3 {[%clk 0:02:25.2]} 18... Nxf3+ {[%clk 0:01:27.8]} 19. Qxf3 {[%clk
0:02:26.1]} 19... Qa7 {[%clk 0:01:22.5]} 20. Rd7 {[%clk 0:02:21.9]} 20... Rad8
{[%clk 0:01:21.1]} 21. Rad1 {[%clk 0:02:17.7]} 21... Rxd7 {[%clk 0:01:20.6]} 22.
Rxd7 {[%clk 0:02:18.6]} 22... Qb6 {[%clk 0:01:16.9]} 23. Qf5 {[%clk 0:02:02.9]}
23... Bc8 {[%clk 0:01:07]} 24. e5 {[%clk 0:01:25.2]} 24... g6 {[%clk 0:01:03.9]}
25. Qg4 {[%clk 0:01:19.3]} 25... h5 {[%clk 0:00:45.7]} 26. Qh3 {[%clk 0:01:16]}
26... Bxd7 {[%clk 0:00:45.6]} 27. Qxd7 {[%clk 0:01:16.4]} 27... Rd8 {[%clk
0:00:46.2]} 28. Qh3 {[%clk 0:01:03.1]} 28... Rd2 {[%clk 0:00:45.9]} 29. Qc8+
{[%clk 0:00:57.2]} 29... Kg7 {[%clk 0:00:42.6]} 30. Bh4 {[%clk 0:00:31.8]} 30...
Bxf2+ {[%clk 0:00:37.7]} 31. Kh1 {[%clk 0:00:20]} 31... Bxh4 {[%clk 0:00:37.6]}
32. e6 {[%clk 0:00:18.7]} 32... Rxc2 {[%clk 0:00:35.6]} 33. h3 {[%clk
0:00:16.8]} 33... Rc1+ {[%clk 0:00:35]} 34. Kh2 {[%clk 0:00:16.8]} 34... Qd6+
{[%clk 0:00:35.9]} 35. g3 {[%clk 0:00:16]} 35... Qxg3# {[%clk 0:00:36.8]} 0-1

[Event "*** Titled Tuesday Blitz"]
[Site "Chess.com"]
[Date "2020.03.03"]
[Round "7"]
[White "gena217"]
[Black "Tjktiger"]
[Result "1-0"]
[WhiteElo "3014"]
[BlackElo "2798"]
[TimeControl "180+1"]
[EndTime "10:12:52 PST"]
[Termination "gena217 won by checkmate"]

1. e4 {[%clk 0:03:00.9]} 1... c5 {[%clk 0:02:58]} 2. Nf3 {[%clk 0:02:58.5]} 2...
g6 {[%clk 0:02:57.9]} 3. d4 {[%clk 0:02:51.7]} 3... cxd4 {[%clk 0:02:57.7]} 4.
Nxd4 {[%clk 0:02:52.6]} 4... Bg7 {[%clk 0:02:57.7]} 5. c4 {[%clk 0:02:52.8]}
5... Nc6 {[%clk 0:02:58]} 6. Be3 {[%clk 0:02:50.4]} 6... Qb6 {[%clk 0:02:58.1]}
7. Nb3 {[%clk 0:02:38.9]} 7... Qd8 {[%clk 0:02:57.9]} 8. Nc3 {[%clk 0:02:37.3]}
8... Bxc3+ {[%clk 0:02:57.2]} 9. bxc3 {[%clk 0:02:38.2]} 9... Nf6 {[%clk
0:02:57.9]} 10. f3 {[%clk 0:02:30.6]} 10... d6 {[%clk 0:02:58.1]} 11. Bh6 {[%clk
0:02:24.4]} 11... Rg8 {[%clk 0:02:57.6]} 12. Qd2 {[%clk 0:02:22.6]} 12... e5
{[%clk 0:02:51.6]} 13. Rd1 {[%clk 0:02:20.6]} 13... g5 {[%clk 0:02:47.8]} 14. h4
{[%clk 0:02:06.2]} 14... gxh4 {[%clk 0:01:56.7]} 15. Qxd6 {[%clk 0:01:39]} 15...
Nd7 {[%clk 0:01:56]} 16. c5 {[%clk 0:01:26]} 16... Rg6 {[%clk 0:01:54]} 17. Qd2
{[%clk 0:01:25.9]} 17... Qe7 {[%clk 0:01:52.2]} 18. Be3 {[%clk 0:01:21]} 18...
a5 {[%clk 0:01:52.2]} 19. a4 {[%clk 0:01:17.7]} 19... Nf8 {[%clk 0:01:47.7]} 20.
Bf2 {[%clk 0:01:14.6]} 20... Be6 {[%clk 0:01:42.7]} 21. Bxh4 {[%clk 0:01:13.4]}
21... f6 {[%clk 0:01:37.3]} 22. Qc2 {[%clk 0:01:09.8]} 22... Nd7 {[%clk
0:01:30.4]} 23. Bf2 {[%clk 0:01:08.5]} 23... O-O-O {[%clk 0:01:10.7]} 24. Rd6
{[%clk 0:01:04.9]} 24... Qf7 {[%clk 0:01:02.7]} 25. Nd2 {[%clk 0:00:56.2]} 25...
f5 {[%clk 0:01:01.8]} 26. Qb1 {[%clk 0:00:49.5]} 26... Ndb8 {[%clk 0:00:51.6]}
27. Qb5 {[%clk 0:00:45.7]} 27... Bd7 {[%clk 0:00:48]} 28. Nc4 {[%clk 0:00:43.6]}
28... Nd4 {[%clk 0:00:03.6]} 29. Qxa5 {[%clk 0:00:33.5]} 29... Nc2+ {[%clk
0:00:03.3]} 30. Kd2 {[%clk 0:00:33.1]} 30... Bxa4 {[%clk 0:00:02.9]} 31. Rxd8#
{[%clk 0:00:31.5]} 1-0

[Event "*** Titled Tuesday Blitz"]
[Site "Chess.com"]
[Date "2020.03.03"]
[Round "7"]
[White "BeanScreen"]
[Black "jmduque"]
[Result "1-0"]
[WhiteElo "2642"]
[BlackElo "2446"]
[TimeControl "180+1"]
[EndTime "10:12:52 PST"]
[Termination "BeanScreen won on time"]

1. e4 {[%clk 0:02:55.4]} 1... a6 {[%clk 0:02:59.1]} 2. d4 {[%clk 0:02:54]} 2...
b5 {[%clk 0:02:57.7]} 3. Bd3 {[%clk 0:02:52.8]} 3... Bb7 {[%clk 0:02:56.1]} 4.
Nf3 {[%clk 0:02:52.4]} 4... e6 {[%clk 0:02:54.3]} 5. O-O {[%clk 0:02:50.7]} 5...
c5 {[%clk 0:02:53.3]} 6. c3 {[%clk 0:02:43.7]} 6... Nf6 {[%clk 0:02:46.6]} 7.
Re1 {[%clk 0:02:42.5]} 7... Be7 {[%clk 0:02:39.3]} 8. e5 {[%clk 0:02:41.7]} 8...
Nd5 {[%clk 0:02:38.2]} 9. Nbd2 {[%clk 0:02:38.9]} 9... Nc6 {[%clk 0:02:36.2]}
10. dxc5 {[%clk 0:02:37.6]} 10... Bxc5 {[%clk 0:02:34.4]} 11. Ne4 {[%clk
0:02:37.5]} 11... Qb6 {[%clk 0:02:27.7]} 12. Nxc5 {[%clk 0:02:31.5]} 12... Qxc5
{[%clk 0:02:26.8]} 13. Ng5 {[%clk 0:02:29]} 13... Qe7 {[%clk 0:02:19.4]} 14. Qh5
{[%clk 0:02:10.9]} 14... g6 {[%clk 0:02:17.6]} 15. Qh6 {[%clk 0:02:07.3]} 15...
O-O-O {[%clk 0:02:14.6]} 16. a4 {[%clk 0:02:04.6]} 16... b4 {[%clk 0:02:11.6]}
17. Bd2 {[%clk 0:01:51.5]} 17... bxc3 {[%clk 0:02:05.8]} 18. bxc3 {[%clk
0:01:52.4]} 18... d6 {[%clk 0:02:03.7]} 19. exd6 {[%clk 0:01:49.5]} 19... Rxd6
{[%clk 0:02:02.4]} 20. Ne4 {[%clk 0:01:48.6]} 20... Rdd8 {[%clk 0:01:58.4]} 21.
Rab1 {[%clk 0:01:45.2]} 21... f5 {[%clk 0:01:53.5]} 22. Bg5 {[%clk 0:01:33.3]}
22... Qf8 {[%clk 0:01:48.4]} 23. Qxf8 {[%clk 0:01:32.8]} 23... Rhxf8 {[%clk
0:01:43.6]} 24. Nc5 {[%clk 0:01:31.5]} 24... Nxc3 {[%clk 0:01:38.7]} 25. Rxb7
{[%clk 0:01:26]} 25... Rxd3 {[%clk 0:01:37.1]} 26. Rb6 {[%clk 0:00:58.4]} 26...
Rd6 {[%clk 0:01:25.6]} 27. Be7 {[%clk 0:00:56.7]} 27... Kc7 {[%clk 0:01:04.8]}
28. Bxd6+ {[%clk 0:00:54.2]} 28... Kxd6 {[%clk 0:01:03.5]} 29. Rxe6+ {[%clk
0:00:45]} 29... Kxc5 {[%clk 0:01:02.9]} 30. Rexc6+ {[%clk 0:00:43.6]} 30... Kd4
{[%clk 0:00:59.8]} 31. Rb4+ {[%clk 0:00:43.5]} 31... Kd3 {[%clk 0:00:58.1]} 32.
Rb3 {[%clk 0:00:43.3]} 1-0

[Event "*** Titled Tuesday Blitz"]
[Site "Chess.com"]
[Date "2020.03.03"]
[Round "7"]
[White "SHIVACalypso"]
[Black "Andrew-FB00"]
[Result "1-0"]
[WhiteElo "2188"]
[BlackElo "1861"]
[TimeControl "180+1"]
[EndTime "10:12:52 PST"]
[Termination "SHIVACalypso won by resignation"]

1. Nf3 {[%clk 0:03:00.9]} 1... Nf6 {[%clk 0:02:57.8]} 2. c4 {[%clk 0:03:01.8]}
2... e6 {[%clk 0:02:55.9]} 3. g3 {[%clk 0:03:02]} 3... b6 {[%clk 0:02:54.5]} 4.
Bg2 {[%clk 0:03:02.1]} 4... Bb7 {[%clk 0:02:53.9]} 5. O-O {[%clk 0:03:02.5]}
5... Be7 {[%clk 0:02:51.9]} 6. Nc3 {[%clk 0:03:00.5]} 6... O-O {[%clk
0:02:51.2]} 7. d3 {[%clk 0:02:58.1]} 7... c5 {[%clk 0:02:47.6]} 8. Rb1 {[%clk
0:02:56.8]} 8... d5 {[%clk 0:02:44.6]} 9. cxd5 {[%clk 0:02:46.7]} 9... Nxd5
{[%clk 0:02:41.4]} 10. Nxd5 {[%clk 0:02:39.3]} 10... Bxd5 {[%clk 0:02:40.1]} 11.
b3 {[%clk 0:02:39.3]} 11... Nd7 {[%clk 0:02:33.5]} 12. Bb2 {[%clk 0:02:38.2]}
12... Bf6 {[%clk 0:02:29.2]} 13. Qc2 {[%clk 0:02:36.5]} 13... Bxb2 {[%clk
0:02:23.7]} 14. Qxb2 {[%clk 0:02:36.3]} 14... Qf6 {[%clk 0:02:17.3]} 15. Qa3
{[%clk 0:02:26.9]} 15... Ne5 {[%clk 0:02:10.2]} 16. Nxe5 {[%clk 0:02:17.7]}
16... Qxe5 {[%clk 0:02:09.5]} 17. e4 {[%clk 0:02:07]} 17... Bb7 {[%clk
0:02:04.2]} 18. b4 {[%clk 0:02:06.5]} 18... cxb4 {[%clk 0:01:56.5]} 19. Rxb4
{[%clk 0:02:06.2]} 19... Rfd8 {[%clk 0:01:55.4]} 20. Rd1 {[%clk 0:01:58.7]}
20... a5 {[%clk 0:01:50.3]} 21. Rxb6 {[%clk 0:01:50.3]} 21... Ba6 {[%clk
0:01:32.4]} 22. Qb3 {[%clk 0:01:30.6]} 22... Rd4 {[%clk 0:01:25.2]} 23. Bf1
{[%clk 0:01:01.9]} 23... Rad8 {[%clk 0:01:22.6]} 24. Rc1 {[%clk 0:00:55.1]}
24... Bc8 {[%clk 0:01:03.6]} 25. Rb8 {[%clk 0:00:47.9]} 25... Ba6 {[%clk
0:00:53.7]} 26. Rxd8+ {[%clk 0:00:39.8]} 26... Rxd8 {[%clk 0:00:52.4]} 27. Qb6
{[%clk 0:00:40.7]} 27... Qg5 {[%clk 0:00:37.4]} 28. h4 {[%clk 0:00:30.4]} 28...
Qf6 {[%clk 0:00:18.7]} 29. Qxa6 {[%clk 0:00:27.4]} 29... h6 {[%clk 0:00:18.2]}
30. Qxa5 {[%clk 0:00:24.9]} 30... Rf8 {[%clk 0:00:16.4]} 31. Qc3 {[%clk
0:00:24.6]} 1-0